Cogmind - Beta 16 @@@ ROGUE MODE // 2025.12.19 @ 23:10:12 Player: obl-vn Result: Destroyed by L-31 Rogue with Katana Performance ------------- Evolutions (2) 1000 Regions Visited (3) 600 Robots Destroyed (55) 275 Value Destroyed (1951) 1951 Prototype IDs (13) 260 Alien Tech Used (0) 0 Bonus (0) 0 TOTAL SCORE: 4086 Bonus ------- None Cogmind --------- Core Integrity 0/550 Matter 112/300 Energy 14/100 System Corruption 1% Temperature Cool (0) Movement Rolling (115) Ox1 Location -8/Materials Parts ------- > --- POWER (1) -------- (None) > --- PROPULSION (4) --- Compact Wheel Compact Wheel Compact Wheel Compact Wheel > --- UTILITY (4) ------ Huge Storage Unit Improved Sensor Array Improved Signal Interpreter > --- WEAPON (2) ------- Hammer > --- INVENTORY (25) --- Compact Wheel Compact Wheel Compact Wheel Compact Wheel Compact Wheel Cryofiber Web Improved Heat Sink Disposable Heat Sink Disposable Heat Sink Sensor Array Improved Sensor Array Improved Terrain Scanner Melee Analysis Suite Gun Armor Scrap Shield Improved Medium Laser Subdweller Beam Cannon Battle Rifle Shock Bomb Launcher Subdweller Shrapnel Launcher Katana Scythe Scythe Peak State ------------ > --- POWER ------------ Light Nuclear Core > --- PROPULSION ------- Light Treads Spiked Treads Wheel Wheel > --- UTILITY ---------- Disposable Heat Sink Huge Storage Unit Improved Signal Interpreter Hardened Light Armor Plating > --- WEAPON ----------- Subdweller Beam Cannon Improved Grenade Launcher > --- INVENTORY -------- Subdweller Monowheel Cryofiber Web Improved Heat Sink Disposable Heat Sink Disposable Heat Sink Sensor Array Improved Sensor Array Improved Terrain Scanner Melee Analysis Suite Improved Light Armor Plating Gun Armor Scrap Shield Shield Generator Improved Medium Laser Subdweller Beam Cannon Battle Rifle Battle Cannon Shock Bomb Launcher Subdweller Shrapnel Launcher Hammer Katana Scythe Scythe [Rating: 27] Favorites ----------- Power Ion Engine Engine Ion Engine Power Core Light Nuclear Core Propulsion Wheel Treads Light Treads Leg Aluminum Leg Wheel Wheel Utility Hardened Light Armor Plating Device Disposable Heat Sink Storage Huge Storage Unit Processor Improved Signal Interpreter Protection Hardened Light Armor Plating Weapon Improved Medium Laser Energy Gun Improved Medium Laser Energy Cannon Subdweller Beam Cannon Ballistic Gun Assault Rifle Ballistic Cannon Battle Cannon Launcher Improved Grenade Launcher Impact Weapon Hammer Build | -11 -10 -10 -8 ------- Run | Yrd Mat Sub Mat Slots Evolved 4 | . . . 4 Power . | . . . . Propulsion 2 | . . . 2 Utility 2 | . . . 2 Weapon . | . . . . Parts Attached 54 | 4 16 4 30 Power 4 | . 2 . 2 Engine 3 | . 2 . 1 Core 1 | . . . 1 Reactor . | . . . . Propulsion 19 | 2 2 1 14 Treads 5 | 2 . . 3 Leg 2 | . . . 2 Wheel 12 | . 2 1 9 Hover . | . . . . Flight . | . . . . Utility 18 | . 7 1 10 Device 10 | . 4 . 6 Storage 1 | . 1 . . Processor 1 | . . . 1 Hackware . | . . . . Protection 6 | . 2 1 3 Artifact . | . . . . Weapon 13 | 2 5 2 4 Energy Gun 3 | . 3 . . Energy Cannon 3 | . . 2 1 Ballistic Gun 3 | 2 1 . . Ballistic Cannon 1 | . . . 1 Launcher 2 | . . . 2 Special Weapon . | . . . . Impact Weapon 1 | . 1 . . Slashing Weapon . | . . . . Piercing Weapon . | . . . . Special Melee Weapon . | . . . . Unidentified Prototypes 1 | . 1 . . Parts Lost 24 | . . 2 22 Power 3 | . . . 3 Propulsion 10 | . . 1 9 Utility 7 | . . 1 6 Weapon 4 | . . . 4 Highest Loss Streak 7 | . . 1 7 To Critical Strikes . | . . . . Average Backups 12 | 1 4 13 20 Power . | . . . . Propulsion . | . . . . Utility 7 | . 3 8 10 Weapon 4 | . . 4 8 Tool/Special . | . . . . Unused Backups 20 | 1 2 . 17 Power 1 | 1 . . . Propulsion 5 | . . . 5 Utility 9 | . 2 . 7 Weapon 5 | . . . 5 Tool/Special . | . . . . Average Slot Usage (%) 92 | . 92 99 80 Engine 9 | . 12 14 1 Treads 10 | . 25 . 9 Leg 1 | . . . 3 Wheel 16 | . 2 27 14 Device 4 | . 4 . 9 Storage 8 | . . 14 9 Processor 2 | . . . 8 Protection 13 | . 18 14 8 Energy Gun 11 | . 10 20 1 Energy Cannon 5 | . . 6 10 Ballistic Gun 4 | . 14 . . Impact Weapon 1 | . 3 1 1 Peak Build Rating 27 | 4 14 16 27 Average Rating 14 | 3 9 14 21 On Entrance 8 | . 4 13 16 Avg Prop Armor Cover (%) 22 | 24 24 . 21 Naked Turns . | . . . . Heaviest Build 107 | 3 96 101 107 Greatest Support 64 | 3 40 30 64 Greatest Overweight (x) 10 | . 4 10 5 Average Overweight (x) 2 | . . 3 3 Largest Inventory Capacity 25 | 5 25 25 25 Average Capacity 19 | 5 5 25 25 Most Carried 25 | 3 9 20 25 Average Carried 13 | 1 4 14 21 Final Capacity 25 | 5 25 25 25 Final Carried 24 | 3 9 20 24 Class Distribution -------------------- 100% | Mutant Dominant Class ---------------- Mutant | -10/Materials Mutant | -10/Subcaves Mutant | -8/Materials Resources | -11 -10 -10 -8 ----------- Run | Yrd Mat Sub Mat Matter Collected 1032 | 240 343 137 312 Remotely . | . . . . Salvage Created 2194 | . 565 643 986 Parts 106 | . 29 35 42 Haulers Intercepted 1 | . 1 . . Recyclers Shooed . | . . . . Parts Field Recycled . | . . . . Retrieved Matter . | . . . . Parts Self-Destructed 12 | . . 12 . Prevented . | . . . . Parts Restored . | . . . . Kills | -11 -10 -10 -8 ------- Run | Yrd Mat Sub Mat Combat Hostiles Destroyed 41 | . 10 11 20 Melee 2 | . 1 . 1 Guns 18 | . 9 9 . Cannons 9 | . . 2 7 AOE 8 | . . . 8 Classes Destroyed 10 | . 5 1 4 Worker 4 | . 1 . 3 Builder 2 | . . . 2 Tunneler 1 | . . . 1 Hauler 1 | . 1 . . Recycler 2 | . 1 . 1 Operator 2 | . 1 . 1 Watcher 2 | . . . 2 Grunt 29 | . 10 4 15 Sentry 5 | . . . 5 Subdweller 7 | . . 7 . Best Kill Streak 8 | . 2 2 8 Combat Bots Only 5 | . 2 2 5 Max Kills in Single Turn 2 | . 1 2 2 Gunslinging 1 | . . 1 . Exploded 2 | . . . 2 Melee 1 | . 1 . 1 Uniques/NPCs Destroyed . | . . . . Combat | -11 -10 -10 -8 -------- Run | Yrd Mat Sub Mat Hostile Shots Fired 262 | . 39 33 190 Missed 65 | . 9 8 48 Hits 197 | . 30 25 142 Melee 1 | . . . 1 Projectile 196 | . 30 25 141 Critical Strikes 9 | . 1 2 6 Damage Taken 3514 | . 421 495 2598 Core 718 | . 68 80 570 Absorbed by Shields 4 | . . . 4 Core Remaining (%) 70 | 100 . 40 . Volleys Fired 159 | . 51 54 54 Largest 2 | . 2 2 2 Hottest 160 | . 112 136 160 Shots Fired 259 | . 76 93 90 Gun 148 | . 76 66 6 Cannon 98 | . . 27 71 Launcher 13 | . . . 13 Special . | . . . . Kinetic 64 | . 57 . 7 Thermal 184 | . 19 93 72 Explosive 11 | . . . 11 Electromagnetic . | . . . . Robot Hit Streak 22 | . 10 18 22 Robot Miss Streak 4 | . 4 2 2 Penetration Max . | . . . . Secondary Targets 1 | . . 1 . Max Gunslinging Chain 1 | . . 1 . Shots Hit Robots 190 | . 54 68 68 Core Hits 82 | . 21 23 38 Critical Kills 3 | . . . 3 Critical Parts Destroyed 1 | . . . 1 Critical Strikes 13 | . 2 7 4 Burn 9 | . 2 7 . Meltdown 3 | . . . 3 Smash 1 | . . . 1 Melee Attacks 23 | . 6 10 7 Impact 23 | . 6 10 7 Slashing . | . . . . Piercing . | . . . . Sneak Attacks 1 | . . . 1 Combat Hostiles . | . . . . Follow-up Attacks . | . . . . Damage Inflicted 4948 | . 798 1294 2856 Guns 1745 | . 696 966 83 Cannons 1601 | . . 328 1273 Explosions 1329 | . . . 1329 Melee 265 | . 102 . 163 Ramming 8 | . . . 8 Kinetic 781 | . 548 . 233 Thermal 2737 | . 148 1294 1295 Explosive 1157 | . . . 1157 Electromagnetic . | . . . . Impact 265 | . 102 . 163 Slashing . | . . . . Piercing . | . . . . Highest Corruption 1 | . . . 1 Average Corruption 1 | . . . 1 Corruption Purged . | . . . . Corruption Blocked . | . . . . Effects 5 | . . . 5 Message Errors 1 | . . . 1 Matter Fused 3 | . . . 3 Heat Flow Errors 1 | . . . 1 Overload Shots . | . . . . Overflow Damage 149 | . . . 149 Projectiles 52 | . . . 52 Explosions 72 | . . . 72 Melee 25 | . . . 25 Knockbacks 2 | . . . 2 Impact 1 | . . . 1 Kinetic 1 | . . . 1 Secondary . | . . . . Self-Inflicted Damage 330 | . . . 330 Shots 9 | . . . 9 Rammed 1 | . . . 1 Targets Rammed 1 | . . . 1 Kicked . | . . . . Crushed . | . . . . Highest Temperature 397 | . 340 120 397 Average Temperature 92 | . 109 31 125 Received Heat Transfer 1608 | . 255 123 1230 Effects 5 | . 4 . 1 Shutdowns 1 | . 1 . . Interference 1 | . 1 . . Short Circuit 1 | . 1 . . Damage (minor) 2 | . 1 . 1 Siege Activations . | . . . . Martial Activations . | . . . . Shielding Activations . | . . . . Robots Disrupted . | . . . . Combat Hostiles . | . . . . Robots Corrupted 1 | . . . 1 Combat Hostiles 1 | . . . 1 Parts Fried 2 | . . . 2 Impact Corruptions 2 | . . . 2 Robots Melted 3 | . . . 3 Combat Hostiles 3 | . . . 3 Parts Melted 12 | . 3 3 6 Heat Transferred 5365 | . 481 3071 1813 Parts Sabotaged . | . . . . Parts Stolen . | . . . . Parts Stripped . | . . . . Power Chain Reactions . | . . . . Alert | -11 -10 -10 -8 ------- Run | Yrd Mat Sub Mat Maximum Alert Level 1 | . . . 1 Low Security (%) 90 | 100 100 . 79 Level 1 9 | . . . 20 Level 2 . | . . . . Level 3 . | . . . . Level 4 . | . . . . Level 5 . | . . . . High Security . | . . . . Max Security . | . . . . Peak Influence 256 | . 94 . 256 Initial 10 | . . . 10 Average 64 | . 24 . 106 Influence Increases 1278 | . 347 115 816 Destroy 0b10 Robot/C 680 | . 200 80 400 Destroy 0b10 Robot/NC 70 | . 20 . 50 Destroy Leader 166 | . 42 20 104 Successful Hack 31 | . 24 . 7 Disable Machine 135 | . 30 . 105 Destroy Structure 91 | . 1 . 90 Lose Combat Pursuer 105 | . 30 15 60 Influence Decreases 1072 | . 347 94 631 Entered New Map 11 | . . . 11 Time Decay 841 | . 347 94 400 Lost Part 220 | . . . 220 Squads Dispatched 6 | . 2 . 4 Investigation 4 | . 1 . 3 Extermination . | . . . . Reinforcement 2 | . 1 . 1 Assault . | . . . . Garrison . | . . . . Intercept . | . . . . Searches Triggered . | . . . . Construction Impeded 1 | . . . 1 Haulers Reinforced . | . . . . Active Scanning Responses . | . . . . Cargo Convoy Interrupts . | . . . . Stealth | -11 -10 -10 -8 --------- Run | Yrd Mat Sub Mat Distress Signals 4 | . 2 . 2 Communications Jammed . | . . . . Distress Signals . | . . . . Times Spotted 72 | . 20 14 38 Peak Tracking Total 9 | . 4 2 9 Tactical Retreats 6 | . 1 2 3 Traps | -11 -10 -10 -8 ------- Run | Yrd Mat Sub Mat Traps Triggered 3 | . 1 . 2 Indirectly . | . . . . Trap Hack Attempts . | . . . . Triggered . | . . . . Disarmed . | . . . . Reprogrammed . | . . . . Reused . | . . . . Traps Extracted . | . . . . Installed . | . . . . Triggered . | . . . . Most Traps Carried 1 | . . 1 1 Machines | -11 -10 -10 -8 ---------- Run | Yrd Mat Sub Mat Machines Disabled 11 | . 3 1 7 Max in Single Turn 2 | . 1 1 2 Machines Repaired . | . . . . Machines Dismantled . | . . . . Machines Sabotaged . | . . . . Overloaded Fab Kills . | . . . . Hacking | -11 -10 -10 -8 --------- Run | Yrd Mat Sub Mat Machines Accessed 11 | . 6 1 4 Terminals 7 | . 5 . 2 Fabricators . | . . . . Repair Stations . | . . . . Recycling Units 1 | . 1 . . Scanalyzers 1 | . . . 1 Garrison Access 1 | . . . 1 Total Hacks 34 | . 22 1 11 Successful 21 | . 15 1 5 Failed 13 | . 7 . 6 Catastrophic 2 | . . . 2 Database Lockouts . | . . . . Manual 16 | . 16 . . Terminals 24 | . 19 . 5 Fabricators . | . . . . Repair Stations . | . . . . Recycling Units 3 | . 3 . . Scanalyzers 4 | . . . 4 Garrison Access 2 | . . . 2 Terminal Hacks 6 | . 4 1 1 Branch Access Points 1 | . . . 1 Locate Traps 3 | . 3 . . Zone Layout 1 | . 1 . . Proto ID Catalog 1 | . . 1 . Fabricator Hacks . | . . . . Repair Station Hacks . | . . . . Recycling Unit Hacks 1 | . 1 . . Retrieve Components 1 | . 1 . . Scanalyzer 4 | . . . 4 Retrieve Study 4 | . . . 4 Garrison Access Hacks . | . . . . Unauthorized Hacks 10 | . 10 . . Terminals 9 | . 9 . . Track 2 | . 2 . . Botnet 1 | . 1 . . Disrupt 2 | . 2 . . Skim 4 | . 4 . . Fabricators . | . . . . Repair Stations . | . . . . Recycling Units 1 | . 1 . . Reject 1 | . 1 . . Scanalyzers . | . . . . Garrison Access . | . . . . Data Cores Recovered 1 | . . . 1 Used 1 | . . . 1 Hacking Detections 8 | . 4 . 4 Full Trace Events 2 | . 1 . 1 Feedback Events . | . . . . Feedback Blocked . | . . . . Robot Schematics Acquired . | . . . . Robots Built . | . . . . Authchips . | . . . . Time . | . . . . Total Robot Build Rating . | . . . . Part Schematics Acquired . | . . . . Parts Built . | . . . . Authchips . | . . . . Time . | . . . . Total Part Build Rating . | . . . . Part Studies Acquired 4 | . . . 4 Parts Repaired . | . . . . Time . | . . . . Parts Recycled . | . . . . Recycled Matter . | . . . . Retrieved Matter . | . . . . Retrieved Components 4 | . 4 . . Parts Scanalyzed . | . . . . Part Schematics Acquired . | . . . . Parts Damaged . | . . . . Bothacking | -11 -10 -10 -8 ------------ Run | Yrd Mat Sub Mat Used RIF Installer . | . . . . Robots Hacked . | . . . . Non-combat . | . . . . Combat . | . . . . Robot Hacks Applied . | . . . . Relay Couplers Released . | . . . . Fabnet Peak Effective % . | . . . . Robots Rewired . | . . . . Allies Hacked . | . . . . Hacks Repelled . | . . . . Allies | -11 -10 -10 -8 -------- Run | Yrd Mat Sub Mat Total Allies . | . . . . Largest Group . | . . . . Highest-Rated Group . | . . . . Highest-Rated Ally . | . . . . Total Orders . | . . . . Ally Attacks . | . . . . Total Damage . | . . . . Kills . | . . . . Allies Corrupted . | . . . . Allies Melted . | . . . . Intel | -11 -10 -10 -8 ------- Run | Yrd Mat Sub Mat Active Infowar (turns) 667 | . . . 667 Sensors 667 | . . . 667 Robot Analysis Total . | . . . . Derelict Logs Recovered 1 | . . 1 . Drone Launches . | . . . . Drone Recoveries . | . . . . Exploration | -11 -10 -10 -8 ------------- Run | Yrd Mat Sub Mat Turns Passed 3812 | 35 1089 1598 1090 Spaces Moved 2201 | 44 711 910 536 Core 253 | 44 209 . . Treads 391 | . 391 . . Legs . | . . . . Wheels 1557 | . 111 910 536 Hover . | . . . . Flight . | . . . . Fastest Speed 50 | 50 50 131 115 Average Speed 132 | 50 117 138 149 Slowest Speed 230 | 50 160 230 175 Overloaded Moves . | . . . . Propulsion Burnouts . | . . . . Robots Hopped . | . . . . Potential Cave-ins . | . . . . Cave-ins Triggered . | . . . . Exploration Rate (%) 42 | 3 63 55 48 Regions Visited 3 Branch Regions 1 Pre-discovered Areas . | . . . . Known Exits Taken . | . . . . Unknown Exits Taken 3 | 1 1 1 . Scrap Searched 5 | . . 5 . Spaces Dug 10 | . . 3 7 Terrain Destroyed 110 | . . 4 106 Melee 2 | . . 2 . Projectile 17 | . . 2 15 AOE 91 | . . . 91 Terrain Rammed . | . . . . Walls Destroyed . | . . . . Machines Disabled . | . . . . Actions | -11 -10 -10 -8 --------- Run | Yrd Mat Sub Mat Total 2795 | 56 883 1133 723 Wait 244 | . 57 138 49 Move 2198 | 43 710 909 536 Hop . | . . . . Pick Up 68 | 8 15 13 32 Fast Attach 9 | . 8 . 1 Attach 43 | 4 9 2 28 Detach 6 | . 4 . 2 Swap 22 | . 8 6 8 Drop 22 | 1 15 1 5 Fire 159 | . 51 54 54 Melee 23 | . 6 10 7 Ram 1 | . . . 1 Kick . | . . . . Crush . | . . . . Escape Stasis . | . . . . Rewire . | . . . . Trap . | . . . . Miscellaneous . | . . . . Route ------- -11/Scrapyard -10/Materials (discovered 3 exits: [Mat] / [*Min] / *Sub) -10/Subcaves (discovered 2 exits: *Mat x2) -8/Materials History --------- Turn | Location | Event 11 | -11/Scrapyard | Discovered new exit (range 15) 36 | -11/Scrapyard | Entered Materials 219 | -10/Materials | Discovered new exit (range 8) 302 | -10/Materials | Build established: Mutant 488 | -10/Materials | Discovered new exit (range 14) 1053 | -10/Materials | Discovered new exit (range 8) 1125 | -10/Materials | Entered Subcaves 1126 | -10/Subcaves | Approached by a straggling Scientist 1673 | -10/Subcaves | Core integrity fell below 50% 1865 | -10/Subcaves | Discovered new exit (range 11) 1917 | -10/Subcaves | A swath of the cavern ceiling suddenly collapsed 2358 | -10/Subcaves | Learned Materials garrison access intel 2408 | -10/Subcaves | Visited 4L-MR0's lab 2424 | -10/Subcaves | Found Gun Armor 2580 | -10/Subcaves | Discovered new exit (range 9) 2723 | -10/Subcaves | Entered Materials 2723 | -8/Materials | Evolved 4 slots: Propulsion x2, Utility x2 2724 | -8/Materials | Loaded intel: 1 garrison access location 2964 | -8/Materials | Lost 6 parts (2p2n1u1w) 3506 | -8/Materials | Lost 7 parts (1p3n1u2w) 3508 | -8/Materials | Core integrity fell below 50% 3572 | -8/Materials | Lost 3 parts (3n) 3591 | -8/Materials | Core integrity fell below 20% 3655 | -8/Materials | Lost 4 parts (1n2u1w) 3813 | -8/Materials | Destroyed by L-31 Rogue with Katana Last Messages --------------- 03645_ Acquired Imp. Sensor Array. 03651_ Acquired 55 matter. 03696_ Acquired Lgt. Treads+. 03707_ Sneak attack on T-07 Excavator. 03707_ Destroyed Lgt. Ion Engine. 03707_ T-07 Excavator system corrupted by crushing effect. 03725_ Triggered Alarm Trap. 03725_ An alarm sounds. 03725_ ALERT: Alarm triggered, dispatching investigation squad. 03728_ System corrupted: Matter fused (-9). 03743_ Acquired Com. Wheel. 03750_ Dropped Lgt. Treads+. 03750_ Acquired Com. Wheel. 03768_ R-06 Scavenger collects Lgt. Treads+. 03797_ W-25 Informer sends out distress signal. 03799_ Lgt. Armor Plating destroyed. 03803_ Shield Generator destroyed. 03809_ U-05 Engineer builds a Door. Map ----- +----------------------------------------------------+ | ??? #??????????????????????????????????????????? | | ??? #??????????????????????????????????????????? | | ??# #??????????????????????????????????????????? | | ??# #??????????????????????????????????????????? | | ??# #??????????????????????????????????????????? | | ??# #??????????????????????????????????????????? | | ??# #??????????????????????????????????????????? | | ### ##?????????????????????????????????????????? | | "??????????????????????????????????????????? | | #??????????????????????????????????????????? | | #??????????????????????????????????????????? | | #????????????????????#######???????????????? | | % #????????????????????# #???????????????? | | %##???????????????????# #???????????????? | | ###& ########????##?#?????# #???????????????? | | # ### # ###??# ""????# #???????????????? | | # # # ## #??? ""S ??# #???????????????? | | + # ##??? "" # #???????????????? | | " # #???? # #???????????????? | | # # #???? # #???????????????? | | # # ##???? """?# #???????????????? | | # # #???? """?# #???????????????? | | # # [ ##????? ""??# #???????????????? | | # #????? ??? ????????????????? | | # ###+### %########+######+##################? | | # @ gu ## | | # % % g l w g | | # g a g g ## | | ################+######+######+######/####### # | | ???? # ## ??? #?? ##! # ????# # | | ?? ?##? ? ## #" # ??# # | | ????? """ ## "# # """"""" #?# / | | ????# """ ## "# # """"""" ### # | | #+##?????# """ ## "#% # """"""" + # | | ?????????# """ ## ""[ # """"""" ### # | | ?????????# ?"" ## " # """"""??#?# # | | ?????????# ?? ## # [ " ?????????# #! | | ???????????? ? ## " % "#????#+#???# ## | | ????????????#??########### "#????# #???# #? | | ?????????????????????????#" %"#????# #???# #? | | ?????????????????????????#" ="#?#### ##### #? | | ?????????????????????????#"""""""#?# #? | | ?????????????????????????# #?# #########/### | | ?????????????????????????# """ #?# #????# | | ?????????????????????????# """"" ### ###??# """ | | ?????????????????????????# """"" # #??# "T" | | ?????????????????????????# """"" # #### | | ?????????????????????????# """ + / | | ?????????????????????????# # #### " """ | | ?????????????????????????# ! # #??# """"" | +----------------------------------------------------+ Best States ------------- Heat Dissipation 45 Coolant Potential 100 Energy Generation 15 Energy Capacity 250 Matter Stores 300 Matter Capacity 300 Sight Range 16 Robot Scan Range 15 Terrain Scan Density 10 Armor Coverage 300 Evasion (%) 50 Recoil Reduction 2 Item Schematics ----------------- None Robot Schematics ------------------ None Fabricated ------------ Nothing Repaired ---------- Nothing Studied --------- Scythe | -8/Materials | Hacked Imp. Grenade Launcher | -8/Materials | Hacked Wheel | -8/Materials | Hacked Lgt. Treads | -8/Materials | Hacked Alien Tech Used ----------------- None Achievements -------------- None Challenges ------------ None Game ------ Seed RemoteHypercooledShield Manual? 0 Play Time 00:32:33 Cumulative 71.5 hours Start 2025.12.19 @ 22:37:11 End 2025.12.19 @ 23:10:12 Sessions 1 Manual Loads 0 Difficulty Rogue Special Mode None Game No. 58 Rogue 58 Adventurer 0 Explorer 0 Win Type - Total 1 Types 0/0/0/1/0/0/0/0/0/0 Lore% 35 Gallery% 42 Achievement% 36 Wizard Run 0 Options --------- Layout 1 ASCII 0 Keyboard 0 Movement Mouse Keybinds 0 Fullscreen 1 Font 32/SmallcapsGlow Map View 50x35 Zoom Use 0% Tactical HUD 1 Map Filters NONE Filters NONE Steam 1 RUN: dca8f5a9-947b-4c99-a755-d85f2684fc80